bitfinex-derivatives/quotes_BNBF0:USTF0_20260114
["timestamp","ask_amount","ask_price","bid_price","bid_amount"]
[1768431547731,0.63425911,945.95,943.92,2.64016931]
[1768431547934,2.614,945.97,943.92,2.64016931]
[1768431548133,0.63425879,945.96,943.92,2.64016931]
[1768431548335,2.614,945.97,943.92,2.64016931]
[1768431548533,0.6339988,945.96,943.92,2.64016931]
[1768431548733,2.614,945.97,943.9,2.64016931]
[1768431548930,0.6339988,945.96,943.9,2.64016931]
[1768431549131,2.614,945.97,943.9,2.64016931]
[1768431549731,2.614,945.97,943.88,2.64016931]
[1768431550131,2.614,945.97,943.87,2.64016931]
[1768431551236,2.614,945.97,943.86,2.64016931]
[1768431552239,2.614,945.97,943.85,2.64016931]
[1768431553238,2.614,945.97,943.84,2.64016931]
[1768431553739,2.614,945.97,943.85,2.64016931]
[1768431554338,2.614,945.97,943.84,2.64016931]
[1768431554940,0.63282439,945.96,943.84,2.64016931]
[1768431555143,0.63282439,945.95,943.73,2.64016931]
[1768431555346,0.63282439,945.94,943.73,2.64016931]
[1768431555646,0.63282439,945.93,943.71,2.64016931]
[1768431555843,0.63282439,945.92,943.71,2.64016931]
[1768431556142,0.63282439,945.91,943.71,2.64016931]
[1768431556347,0.63282439,945.9,943.71,2.64016931]
[1768431556541,0.63282439,945.89,943.71,2.64016931]
[1768431556842,0.63282439,945.88,943.69,2.64016931]
[1768431557040,0.63282439,945.87,943.69,2.64016931]
[1768431557242,0.63282439,945.86,943.69,2.64016931]
[1768431557446,2.614,945.97,943.69,2.64016931]
[1768431557642,0.63287285,945.96,943.69,2.64016931]
[1768431557947,0.63287285,945.95,943.69,2.64016931]
[1768431558246,0.63287285,945.94,943.67,2.64016931]
[1768431558444,0.63287285,945.93,943.67,2.64016931]
[1768431558646,0.63287285,945.92,943.67,2.64016931]
[1768431558843,0.63287285,945.91,943.67,2.64016931]
[1768431559146,0.63287285,945.9,943.67,2.64016931]
[1768431559347,0.63287285,945.89,943.67,2.64016931]
[1768431559544,0.63287285,945.88,943.67,2.64016931]
[1768431559745,0.63287285,945.87,943.67,2.64016931]
[1768431560048,0.63287285,945.86,943.67,2.64016931]
[1768431560244,0.63287285,945.85,943.67,2.64016931]
[1768431560449,0.63287285,945.84,943.66,2.64016931]
[1768431560646,0.63287285,945.83,943.66,2.64016931]
[1768431560846,0.63287285,945.82,943.66,2.64016931]
[1768431561049,0.63287285,945.81,943.66,2.64016931]
[1768431561245,0.63287285,945.8,943.66,2.64016931]
[1768431561445,2.614,945.97,943.66,2.64016931]
[1768431561646,0.6328469,945.96,943.66,2.64016931]
[1768431561845,0.6328469,945.95,943.66,2.64016931]
[1768431562049,0.6328469,945.94,943.66,2.64016931]
[1768431562249,0.6328469,945.93,943.66,2.64016931]
[1768431562548,0.6328469,945.92,943.66,2.64016931]
[1768431562751,0.6328469,945.91,943.66,2.64016931]
[1768431563051,0.6328469,945.9,943.66,2.64016931]
[1768431563246,0.6328469,945.89,943.66,2.64016931]
[1768431563450,0.6328469,945.88,943.67,2.64016931]
[1768431563646,0.6328469,945.87,943.67,2.64016931]
[1768431563851,0.6328469,945.86,943.67,2.64016931]
[1768431564046,0.6328469,945.85,943.66,2.64016931]
[1768431564250,0.6328469,945.84,943.66,2.64016931]
[1768431564546,0.6328469,945.83,943.67,2.64016931]
[1768431564850,0.6328469,945.82,943.67,2.64016931]
[1768431565051,0.6328469,945.81,943.67,2.64016931]
[1768431565250,0.6328469,945.8,943.67,2.64016931]
[1768431565449,2.614,945.97,943.67,2.64016931]
[1768431565450,0.6328469,945.79,943.67,2.64016931]
[1768431565646,0.6328469,945.78,943.67,2.64016931]
[1768431565852,2.614,945.97,943.67,2.64016931]
[1768431565853,0.63251805,945.77,943.67,2.64016931]
[1768431566046,0.63251805,945.76,943.63,2.64016931]
[1768431566251,0.63251805,945.75,943.63,2.64016931]
[1768431566550,0.63251805,945.74,943.64,2.64016931]
[1768431566850,2.614,945.97,943.64,2.64016931]
[1768431567050,0.63226972,945.96,943.64,2.64016931]
[1768431567351,0.63226972,945.95,943.64,2.64016931]
[1768431567551,0.63226972,945.94,943.64,2.64016931]
[1768431567751,0.63226972,945.93,943.64,2.64016931]
[1768431568050,0.63226972,945.92,943.64,2.64016931]
[1768431568250,0.63226972,945.91,943.64,2.64016931]
[1768431568551,0.63226972,945.9,943.65,2.64016931]
[1768431568749,0.63226972,945.89,943.65,2.64016931]
[1768431568950,0.63226972,945.88,943.65,2.64016931]
[1768431569152,0.63226972,945.87,943.66,2.64016931]
[1768431569348,0.63226972,945.86,943.66,2.64016931]
[1768431569553,0.63226972,945.85,943.66,2.64016931]
[1768431569753,0.63226972,945.84,943.66,2.64016931]
[1768431569953,0.63226972,945.83,943.66,2.64016931]
[1768431570250,0.63226972,945.82,943.67,2.64016931]
[1768431570452,0.63226972,945.81,943.67,2.64016931]
[1768431570650,0.63226972,945.8,943.67,2.64016931]
[1768431570851,0.63226972,945.79,943.67,2.64016931]
[1768431571054,0.63226972,945.78,943.67,2.64016931]
[1768431571253,0.63226972,945.77,943.68,2.64016931]
[1768431571553,0.63226972,945.76,943.68,2.64016931]
[1768431571749,0.63226972,945.75,943.68,2.64016931]
[1768431572053,0.63226972,945.74,943.68,2.64016931]
[1768431572253,0.63226972,945.73,943.69,2.64016931]
[1768431572549,0.63226972,945.72,943.69,2.64016931]
[1768431572750,0.63226972,945.71,943.69,2.64016931]
[1768431572950,0.63226972,945.7,943.69,2.64016931]
[1768431573153,0.63226972,945.69,943.69,2.64016931]
[1768431573354,2.614,945.97,943.7,2.64016931]
[1768431573550,0.63365121,945.96,943.7,2.64016931]
[1768431573755,0.63365121,945.95,943.7,2.64016931]
[1768431573955,0.63365121,945.94,943.7,2.64016931]
[1768431574156,0.63365121,945.93,943.7,2.64016931]
[1768431574356,0.63365121,945.92,943.71,2.64016931]
[1768431574656,0.63365121,945.91,943.71,2.64016931]
[1768431574859,0.63365121,945.9,943.71,2.64016931]
[1768431575056,0.63365121,945.89,943.71,2.64016931]
[1768431575257,0.63365121,945.88,943.71,2.64016931]
[1768431575456,0.63365121,945.87,943.72,2.64016931]
[1768431575653,0.63365121,945.86,943.72,2.64016931]
[1768431575956,0.63365121,945.85,943.7,2.64016931]
[1768431576153,0.63365121,945.84,943.7,2.64016931]
[1768431576355,0.63365121,945.83,943.7,2.64016931]
[1768431576656,0.63365121,945.82,943.71,2.64016931]
[1768431576951,0.63365121,945.81,943.71,2.64016931]
[1768431577152,0.63365121,945.8,943.71,2.64016931]
[1768431577357,2.614,945.97,943.71,2.64016931]
[1768431577358,0.63365121,945.79,943.71,2.64016931]
[1768431577559,0.63365121,945.78,943.72,2.64016931]
[1768431577858,0.63365121,945.77,943.72,2.64016931]
[1768431578060,0.63365121,945.76,943.72,2.64016931]
[1768431578259,0.63365121,945.75,943.72,2.64016931]
[1768431578460,0.63365121,945.74,943.73,2.64016931]
[1768431578759,0.63365121,945.73,943.73,2.64016931]
[1768431579056,0.63365121,945.72,943.73,2.64016931]
[1768431579254,0.63365121,945.71,943.73,2.64016931]
[1768431579459,0.63365121,945.7,943.73,2.64016931]
[1768431579660,0.63365121,945.69,943.74,2.64016931]
[1768431579860,0.63365121,945.68,943.74,2.64016931]
[1768431580059,0.63365121,945.67,943.74,2.64016931]
[1768431580258,0.63365121,945.66,943.74,2.64016931]
[1768431580456,0.63365121,945.65,943.74,2.64016931]
[1768431580761,0.63365121,945.64,943.75,2.64016931]
[1768431581056,0.63365121,945.63,943.75,2.64016931]
[1768431581260,0.63365121,945.62,943.76,2.64016931]
[1768431581457,0.63365121,945.61,943.76,2.64016931]
[1768431581657,2.614,945.97,943.77,2.64016931]
[1768431581858,0.63520235,945.96,943.77,2.64016931]
[1768431582058,0.63520235,945.95,943.77,2.64016931]
[1768431582265,0.63520235,945.94,943.78,2.64016931]
[1768431582465,0.63520235,945.93,943.78,2.64016931]
[1768431582661,0.63520235,945.92,943.78,2.64016931]
[1768431582859,0.63520235,945.91,943.78,2.64016931]
[1768431583061,0.63520235,945.9,943.78,2.64016931]
[1768431583360,0.63520235,945.89,943.8,2.64016931]
[1768431583560,0.63520235,945.88,943.8,2.64016931]
[1768431583764,0.63520235,945.87,943.8,2.64016931]
[1768431584064,0.63520235,945.86,943.8,2.64016931]
[1768431584264,0.63520235,945.85,943.8,2.64016931]
[1768431584464,0.63520235,945.84,943.8,2.64016931]
[1768431584664,0.63520235,945.83,943.8,2.64016931]
[1768431584864,0.63520235,945.82,943.74,2.64016931]
[1768431585060,0.63520235,945.81,943.74,2.64016931]
[1768431585366,0.63520235,945.8,943.74,2.64016931]
[1768431585560,0.63520235,945.79,943.74,2.64016931]
[1768431585765,0.63520235,945.78,943.74,2.64016931]
[1768431585965,0.63520235,945.77,943.74,2.64016931]
[1768431586160,0.63520235,945.76,943.74,2.64016931]
[1768431586461,0.63520235,945.75,943.74,2.64016931]
[1768431586664,0.63520235,945.74,943.74,2.64016931]
[1768431586860,0.63520235,945.73,943.72,2.64016931]
[1768431587061,0.63520235,945.72,943.72,2.64016931]
[1768431587362,0.63520235,945.71,943.68,2.64016931]
[1768431587562,0.63520235,945.7,943.68,2.64016931]
[1768431587762,0.63520235,945.69,943.68,2.64016931]
[1768431587963,0.63520235,945.68,943.68,2.64016931]
[1768431588166,0.63520235,945.67,943.68,2.64016931]
[1768431588466,0.63520235,945.66,943.68,2.64016931]
[1768431588666,0.63520235,945.65,943.68,2.64016931]
[1768431588962,0.63520235,945.64,943.68,2.64016931]
[1768431589162,0.63520235,945.63,943.68,2.64016931]
[1768431589363,0.63520235,945.62,943.68,2.64016931]
[1768431589568,0.63520235,945.61,943.68,2.64016931]
[1768431589868,0.63520235,945.6,943.68,2.64016931]
[1768431590167,0.63520235,945.59,943.68,2.64016931]
[1768431590368,0.63520235,945.58,943.68,2.64016931]
[1768431590566,0.63520235,945.57,943.67,2.64016931]
[1768431590766,0.63520235,945.56,943.67,2.64016931]
[1768431591569,0.63520235,945.56,943.68,2.64016931]
[1768431595574,0.63520235,945.56,943.67,2.64016931]
[1768431596673,0.63520235,945.56,943.66,2.64016931]
[1768431600174,0.63520235,945.55,943.66,2.64016931]
[1768431600378,0.63520235,945.54,943.66,2.64016931]
[1768431600578,0.63520235,945.53,943.66,2.64016931]
[1768431600878,0.63520235,945.52,943.66,2.64016931]
[1768431601074,0.63520235,945.51,943.66,2.64016931]
[1768431601375,0.63520235,945.5,943.66,2.64016931]
[1768431601678,0.63520235,945.49,943.66,2.64016931]
[1768431601879,0.63520235,945.48,943.66,2.64016931]
[1768431602078,0.63520235,945.47,943.66,2.64016931]
[1768431602375,0.63520235,945.46,943.66,2.64016931]
[1768431602578,0.63520235,945.45,943.66,2.64016931]
[1768431602873,0.63520235,945.44,943.66,2.64016931]
[1768431603077,0.63520235,945.43,943.66,2.64016931]
[1768431603274,0.63520235,945.42,943.66,2.64016931]
[1768431603474,0.63520235,945.41,943.66,2.64016931]
[1768431603779,0.63520235,945.4,943.66,2.64016931]
[1768431604078,0.63520235,945.39,943.66,2.64016931]
[1768431604278,2.346,945.57,943.66,2.64016931]
[1768431604480,0.63574369,945.56,943.66,2.64016931]
[1768431604680,0.63574369,945.55,943.66,2.64016931]
[1768431604876,0.63574369,945.54,943.66,2.64016931]
[1768431605080,0.63574369,945.53,943.66,2.64016931]
[1768431605378,0.63574369,945.52,943.66,2.64016931]
[1768431605576,0.63574369,945.51,943.63,2.64016931]
[1768431605779,0.63574369,945.5,943.63,2.64016931]
[1768431605979,0.63574369,945.49,943.63,2.64016931]
[1768431606178,0.63574369,945.48,943.64,2.64016931]
[1768431606476,0.63574369,945.47,943.64,2.64016931]
[1768431606676,0.63574369,945.46,943.64,2.64016931]
[1768431606880,0.63574369,945.45,943.64,2.64016931]
[1768431607176,0.63574369,945.44,943.62,2.64016931]
[1768431607380,0.63574369,945.43,943.62,2.64016931]
[1768431607577,0.63574369,945.42,943.62,2.64016931]
[1768431607778,0.63574369,945.41,943.62,2.64016931]
[1768431608079,0.63574369,945.4,943.62,2.64016931]
[1768431608279,0.63574369,945.39,943.62,2.64016931]
[1768431608580,0.63574369,945.38,943.62,2.64016931]
[1768431608783,0.63574369,945.37,943.62,2.64016931]
[1768431608983,0.63574369,945.36,943.62,2.64016931]
[1768431609182,0.63574369,945.35,943.62,2.64016931]
[1768431609383,0.63574369,945.34,943.62,2.64016931]
[1768431609679,2.346,945.57,943.62,2.64016931]
[1768431609878,0.64498636,945.56,943.62,2.64016931]
[1768431610084,0.64498636,945.55,943.62,2.64016931]
[1768431610280,0.64498636,945.54,943.62,2.64016931]
[1768431610480,0.64498636,945.53,943.78,0.18408413]
[1768431610781,0.64498636,945.52,943.78,0.18408413]
[1768431610979,0.64498636,945.51,943.78,0.18408413]
[1768431611185,0.64498636,945.5,943.78,0.18408413]
[1768431611383,0.64498636,945.49,943.78,0.18408413]
[1768431611583,0.64498636,945.48,943.78,0.18408413]
[1768431611783,0.64498636,945.47,943.78,0.18408413]
[1768431611981,0.64498636,945.46,943.78,0.18408413]
[1768431612184,0.64498636,945.45,943.78,0.18408413]
[1768431612480,0.64498636,945.44,943.78,0.18408413]
[1768431612680,0.64498636,945.43,943.78,0.18408413]
[1768431612881,0.64498636,945.42,943.78,0.18408413]
[1768431613185,0.64498636,945.41,943.78,0.18408413]
[1768431613382,0.64498636,945.4,943.78,0.18408413]
[1768431613586,0.64498636,945.39,943.78,0.18408413]
[1768431613788,0.64498636,945.38,943.78,0.18408413]
[1768431613981,2.346,945.57,943.78,0.18408413]
[1768431614286,0.64519479,945.56,943.78,0.18408413]
[1768431614585,2.346,945.57,943.78,0.18408413]
[1768431614586,0.64519479,945.55,943.78,0.18408413]
[1768431614786,0.64519479,945.54,943.78,0.18408413]
[1768431614985,0.64519479,945.53,943.78,0.18408413]
[1768431615186,0.64519479,945.52,943.78,0.18408413]
[1768431615382,0.64519479,945.51,943.78,0.18408413]
[1768431615583,0.64519479,945.5,943.78,0.18408413]
[1768431615781,0.64519479,945.49,943.78,0.18408413]
[1768431615985,0.64519479,945.48,943.78,0.18408413]
[1768431616282,0.64519479,945.47,943.78,0.18408413]
[1768431616586,0.64519479,945.46,943.78,0.18408413]
[1768431616787,0.64519479,945.45,943.78,0.18408413]
[1768431616986,0.64519479,945.44,943.78,0.18408413]
[1768431617186,0.64519479,945.43,943.78,0.18408413]
[1768431617388,0.64519479,945.42,943.78,0.18408413]
[1768431617589,0.64519479,945.41,943.78,0.18408413]
[1768431617886,0.64519479,945.4,943.78,0.18408413]
[1768431618088,0.64519479,945.39,943.78,0.18408413]
[1768431618288,0.64519479,945.38,943.78,0.18408413]
[1768431618488,0.64519479,945.37,943.78,0.18408413]
[1768431618690,0.64519479,945.36,943.78,0.18408413]
[1768431618889,2.346,945.57,943.78,0.18408413]
[1768431619186,0.64550923,945.56,943.78,0.18408413]
[1768431619388,0.64550923,945.55,943.78,0.18408413]
[1768431619589,0.64550923,945.54,943.78,0.18408413]
[1768431619792,0.64550923,945.53,943.78,0.18408413]
[1768431620087,0.64550923,945.52,943.78,0.18408413]
[1768431620286,0.64550923,945.51,943.78,0.18408413]
[1768431620491,0.64550923,945.5,943.78,0.18408413]
[1768431620687,0.64550923,945.49,943.78,0.18408413]
[1768431620888,0.64550923,945.48,943.78,0.18408413]
[1768431621091,0.64550923,945.47,943.78,0.18408413]
[1768431621387,0.64550923,945.46,943.78,0.18408413]
[1768431621588,0.64550923,945.45,943.78,0.18408413]
[1768431621789,0.64550923,945.44,943.78,0.18408413]
[1768431622087,0.64550923,945.43,943.78,0.18408413]
[1768431622290,0.64550923,945.42,943.78,0.18408413]
[1768431622491,0.64550923,945.41,943.78,0.18408413]
[1768431622688,0.64550923,945.4,943.78,0.18408413]
[1768431622991,0.64550923,945.39,943.78,0.18408413]
[1768431623192,0.64550923,945.38,943.78,0.18408413]
[1768431623393,0.64550923,945.37,943.78,0.18408413]
[1768431623692,2.346,945.57,943.78,0.18408413]
[1768431623892,0.64578247,945.56,943.78,0.18408413]
[1768431624092,0.64578247,945.55,943.78,0.18408413]
[1768431624393,0.64578247,945.54,943.78,0.18408413]
[1768431624593,0.64578247,945.53,943.78,0.18408413]
[1768431624791,0.64578247,945.52,943.78,0.18408413]
[1768431624991,0.64578247,945.51,943.78,0.18408413]
[1768431625193,0.64578247,945.5,943.78,0.18408413]
[1768431625393,0.64578247,945.49,943.78,0.18408413]
[1768431625594,0.64578247,945.48,943.78,0.18408413]
[1768431625797,0.64578247,945.47,943.78,0.18408413]
[1768431625996,0.64578247,945.46,943.78,0.18408413]
[1768431626193,0.64578247,945.45,943.78,0.18408413]
[1768431626492,0.64578247,945.44,943.78,0.18408413]
[1768431626691,0.64578247,945.43,943.78,0.18408413]
[1768431626892,0.64600762,945.42,943.78,0.18408413]
[1768431627092,0.64600762,945.41,943.78,0.18408413]
[1768431627293,0.64600762,945.4,943.78,0.18408413]
[1768431627491,0.64600762,945.39,943.78,0.18408413]
[1768431627694,0.64600762,945.38,943.78,0.18408413]
[1768431627896,0.64600762,945.37,943.78,0.18408413]
[1768431628093,0.64600762,945.36,943.78,0.18408413]
[1768431628297,0.64600762,945.35,943.78,0.18408413]
[1768431628499,0.64600762,945.34,943.78,0.18408413]
[1768431628798,0.64600762,945.33,943.78,0.18408413]
[1768431628995,0.64600762,945.32,943.78,0.18408413]
[1768431629196,0.64600762,945.31,943.78,0.18408413]
[1768431629394,0.64600762,945.3,943.78,0.18408413]
[1768431629597,0.64600762,945.29,943.78,0.18408413]
[1768431629796,0.64600762,945.28,943.78,0.18408413]
[1768431630096,0.64600762,945.27,943.78,0.18408413]
[1768431630300,2.346,945.57,943.78,0.18408413]
[1768431630499,0.64635903,945.56,943.78,0.18408413]
[1768431630696,0.64635903,945.55,943.78,0.18408413]
[1768431630896,0.64635903,945.54,943.78,0.18408413]
[1768431631199,0.64635903,945.53,943.78,0.18408413]
[1768431631398,0.64635903,945.52,943.78,0.18408413]
[1768431631597,0.64635903,945.51,943.78,0.18408413]
[1768431631802,0.64635903,945.5,943.78,0.18408413]
[1768431631999,0.64635903,945.49,943.78,0.18408413]
[1768431632202,0.64635903,945.48,943.78,0.18408413]
[1768431632403,0.64635903,945.47,943.78,0.18408413]
[1768431632602,0.64635903,945.46,943.78,0.18408413]
[1768431632804,0.64635903,945.45,943.78,0.18408413]
[1768431633104,0.64635903,945.44,943.78,0.18408413]
[1768431633298,0.64635903,945.43,943.78,0.18408413]
[1768431633599,0.64635903,945.42,943.78,0.18408413]
[1768431633802,0.64635903,945.41,943.78,0.18408413]
[1768431634005,0.64635903,945.4,943.78,0.18408413]
[1768431634299,0.64635903,945.39,943.78,0.18408413]
[1768431634503,0.64635903,945.38,943.78,0.18408413]
[1768431634698,0.64635903,945.37,943.78,0.18408413]
[1768431634899,0.64635903,945.36,943.78,0.18408413]
[1768431635099,0.64635903,945.35,943.78,0.18408413]
[1768431635402,0.64635903,945.34,943.78,0.18408413]
[1768431635602,0.64635903,945.33,943.78,0.18408413]
[1768431635802,0.64635903,945.32,943.78,0.18408413]
[1768431635998,0.64635903,945.31,943.78,0.18408413]
[1768431636203,0.64635903,945.3,943.78,0.18408413]
[1768431636401,0.64635903,945.29,943.78,0.18408413]
[1768431636704,0.64635903,945.28,943.78,0.18408413]
[1768431637004,0.64635903,945.27,943.78,0.18408413]
[1768431637200,2.346,945.57,943.78,0.18408413]
[1768431637407,0.64498007,945.56,943.78,0.18408413]
[1768431637602,0.64498007,945.55,943.78,0.18408413]
[1768431637807,0.64498007,945.54,943.78,0.18408413]
[1768431638007,0.64498007,945.53,943.78,0.18408413]
[1768431638208,0.64498007,945.52,943.78,0.18408413]
[1768431638404,0.64498007,945.51,943.78,0.18408413]
[1768431638608,0.64498007,945.5,943.78,0.18408413]
[1768431638808,0.64498007,945.49,943.78,0.18408413]
[1768431639107,0.64498007,945.48,943.78,0.18408413]
[1768431639307,2.346,945.57,943.78,0.18408413]
[1768431639308,0.64498007,945.47,943.78,0.18408413]
[1768431639509,0.64498007,945.46,943.78,0.18408413]
[1768431639705,0.64498007,945.45,943.78,0.18408413]
[1768431639906,2.346,945.57,943.78,0.18408413]
[1768431639907,0.64498007,945.44,943.78,0.18408413]
[1768431640207,0.64498007,945.43,943.78,0.18408413]
[1768431640404,0.64498007,945.42,943.78,0.18408413]
[1768431640609,0.64498007,945.41,943.78,0.18408413]
[1768431640909,0.64498007,945.4,943.78,0.18408413]
[1768431641110,0.64498007,945.39,943.78,0.18408413]
[1768431641310,0.64498007,945.38,943.78,0.18408413]
[1768431641511,0.64498007,945.37,943.78,0.18408413]
[1768431641706,0.64498007,945.36,943.78,0.18408413]
[1768431641912,0.64498007,945.35,943.78,0.18408413]
[1768431642112,0.64498007,945.34,943.78,0.18408413]
[1768431642308,0.64498007,945.33,943.78,0.18408413]
[1768431642512,0.64498007,945.32,943.78,0.18408413]
[1768431642711,0.64498007,945.31,943.78,0.18408413]
[1768431643011,0.64498007,945.3,943.78,0.18408413]
[1768431643211,0.64498007,945.29,943.78,0.18408413]
[1768431643507,0.64498007,945.28,943.78,0.18408413]
[1768431643709,0.64498007,945.27,943.78,0.18408413]
[1768431643910,2.346,945.57,943.78,0.18408413]
[1768431644105,0.64501391,945.56,943.78,0.18408413]
[1768431644311,0.64501391,945.55,943.78,0.18408413]
[1768431644510,0.64501391,945.54,943.78,0.18408413]
[1768431644709,0.64501391,945.53,943.78,0.18408413]
[1768431644909,0.64501391,945.52,943.78,0.18408413]
[1768431645208,0.64501391,945.51,943.78,0.18408413]
[1768431645409,0.64501391,945.5,943.78,0.18408413]
[1768431645610,2.346,945.57,943.78,0.18408413]
[1768431645611,0.64501391,945.49,943.78,0.18408413]
[1768431645810,0.64501391,945.48,943.78,0.18408413]
[1768431646015,0.64501391,945.47,943.84,2.64016931]
[1768431646315,2.346,945.57,943.84,2.64016931]
[1768431646516,2.346,945.57,944.03,2.64016931]
[1768431647014,2.346,945.57,944.1,2.64016931]
[1768431647512,2.346,945.57,944.06,2.64016931]
[1768431647818,6.49900937,945.78,944.06,2.64016931]
[1768431648018,0.64441225,945.77,944.06,2.64016931]
[1768431648218,0.64441225,945.76,944.05,2.64016931]
[1768431648421,6.49900937,945.78,944.05,2.64016931]
[1768431648718,0.64394639,945.77,944.05,2.64016931]
[1768431648918,0.64394639,945.76,944.05,2.64016931]
[1768431649219,6.49900937,945.78,944.03,2.64016931]
[1768431649618,6.49900937,945.78,944.02,2.64016931]
[1768431650122,6.49900937,945.78,944.01,2.64016931]
[1768431650320,0.64327909,945.77,944.01,2.64016931]
[1768431650520,0.64327909,945.76,944.01,2.64016931]
[1768431650715,0.64327909,945.75,943.94,2.64016931]
[1768431650915,0.64327909,945.74,943.94,2.64016931]
[1768431651117,6.49900937,945.78,943.94,2.64016931]
[1768431651318,0.64311574,945.77,943.93,2.64016931]
[1768431651521,0.64311574,945.76,943.93,2.64016931]
[1768431651719,0.64311574,945.75,943.93,2.64016931]
[1768431651919,0.64311574,945.74,943.93,2.64016931]
[1768431652119,1.644,945.77,943.93,2.64016931]
[1768431652318,1.644,945.77,943.78,0.18408413]
[1768431652319,0.64297797,945.76,943.92,2.64016931]
[1768431652522,0.64297797,945.75,943.92,2.64016931]
[1768431652724,1.644,945.77,943.92,2.64016931]
[1768431652923,0.64297797,945.76,943.92,2.64016931]
[1768431653122,0.64297797,945.75,943.92,2.64016931]
[1768431653324,1.644,945.77,943.91,2.64016931]
[1768431653520,0.64285623,945.76,943.91,2.64016931]
[1768431653724,0.64285623,945.75,943.91,2.64016931]
[1768431653924,1.644,945.77,943.91,2.64016931]
[1768431654125,0.64285617,945.76,943.91,2.64016931]
[1768431654326,1.644,945.77,943.91,2.64016931]
[1768431654622,0.64274843,945.76,943.91,2.64016931]
[1768431654821,1.644,945.77,943.91,2.64016931]
[1768431655321,1.644,945.77,943.9,2.64016931]
[1768431657426,1.644,945.77,943.93,2.64016931]
[1768431658428,1.644,945.77,943.92,2.64016931]
[1768431658931,1.644,945.77,943.94,2.64016931]
[1768431659731,1.644,945.77,943.93,2.64016931]
[1768431660128,1.644,945.77,943.96,2.64016931]
[1768431660628,1.644,945.77,943.97,2.64016931]
[1768431661536,1.644,945.77,943.96,2.64016931]
[1768431662733,1.644,945.77,944.11,2.64016931]
[1768431663633,1.644,945.77,944.1,2.64016931]
[1768431664337,1.644,945.77,944.11,2.64016931]
[1768431664832,1.644,945.77,944.09,2.64016931]
[1768431665238,1.644,945.77,944.14,2.64016931]
[1768431666334,1.644,945.77,944.13,2.64016931]
[1768431667541,1.644,945.77,944.12,2.64016931]
[1768431668341,1.644,945.77,944.11,2.64016931]
[1768431668842,1.644,945.77,944.19,2.64016931]
[1768431669339,1.644,945.77,944.17,2.64016931]
[1768431670338,1.644,945.77,944.16,2.64016931]
[1768431671438,1.644,945.77,944.14,2.64016931]
[1768431671939,1.644,945.77,944.16,2.64016931]
[1768431672442,1.644,945.77,943.82,3.66114111]
[1768431672443,1.644,945.77,944.15,2.64016931]
[1768431673544,1.644,945.77,944.14,2.64016931]
[1768431674539,1.644,945.77,944.15,2.64016931]
[1768431675043,1.644,945.77,944.17,2.64016931]
[1768431675642,1.644,945.77,944.24,2.64016931]
[1768431677144,1.644,945.77,944.26,2.64016931]
[1768431677844,1.644,945.77,944.31,2.64016931]
[1768431678747,1.644,945.77,944.3,2.64016931]
[1768431679845,1.644,945.77,944.29,2.64016931]
[1768431680340,1.644,945.77,944.28,2.64016931]
[1768431681347,1.644,945.77,944.27,2.64016931]
[1768431683348,1.644,945.77,944.28,2.64016931]
[1768431686451,1.644,945.77,944.29,2.64016931]
[1768431687445,1.644,945.77,944.3,2.64016931]
[1768431688748,1.644,945.77,944.31,2.64016931]
[1768431689151,1.644,945.77,944.33,2.64016931]
[1768431689648,1.644,945.77,944.32,2.64016931]
[1768431690352,1.644,945.77,944.43,2.64016931]
[1768431690849,1.644,945.77,944.42,2.64016931]
[1768431691451,1.644,945.77,944.43,2.64016931]
[1768431696352,1.644,945.77,944.44,2.64016931]
[1768431697451,1.644,945.77,944.45,2.64016931]
[1768431698451,1.644,945.77,944.46,2.64016931]
[1768431699655,1.644,945.77,944.47,2.64016931]
[1768431700553,1.644,945.77,944.48,2.64016931]
[1768431701557,1.644,945.77,944.5,2.64016931]
[1768431702258,1.644,945.77,944.52,2.64016931]
[1768431703159,1.644,945.77,944.53,2.64016931]
[1768431703659,1.644,945.77,944.54,2.64016931]
[1768431704155,1.644,945.77,944.56,2.64016931]
[1768431705256,1.644,945.77,944.57,2.64016931]
[1768431705756,0.18394547,947.16,944.57,2.64016931]
[1768431706157,0.63997563,947.15,944.57,2.64016931]
[1768431706461,0.18394547,947.16,944.57,2.64016931]
[1768431706462,0.63997563,947.14,944.57,2.64016931]
[1768431706760,0.63997563,947.13,944.57,2.64016931]
[1768431706961,0.63997563,947.12,944.59,2.64016931]
[1768431707159,0.63997563,947.11,944.59,2.64016931]
[1768431707358,0.63997563,947.1,944.61,2.64016931]
[1768431707562,0.63997563,947.09,944.61,2.64016931]
[1768431707762,0.63997563,947.08,944.61,2.64016931]
[1768431707958,0.63997563,947.07,944.64,2.64016931]
[1768431708262,0.63997563,947.06,944.64,2.64016931]
[1768431708462,0.63997563,947.05,944.65,2.64016931]
[1768431708762,0.63997563,947.04,944.65,2.64016931]
[1768431708960,0.63997563,947.03,944.65,2.64016931]
[1768431709163,0.63997563,947.02,944.65,2.64016931]